[Event "Titled Tuesday Blitz February 22 Late 2022"]
[White "Kobo, Ori"]
[Black "Djokic, Mihailo"]
[WhiteFideId "2812320"]
[BlackFideId "976440"]
[WhiteElo "2420"]
[BlackElo "2008"]
[Result "1/2-1/2"]
[Round "08"]
[TimeControl "180+1"]
[Date "2022.02.22"]
[WhiteClock "0:00:07"]
[BlackClock "0:00:05"]

1. Nc3 {[%clk 0:03:00]}  d5 {[%clk 0:02:56]} 2. d4 {[%clk 0:03:01]}  Nf6 {[%clk 0:02:56]} 3. Bf4 {[%clk 0:03:01]}  e6 {[%clk 0:02:56]} 4. Nb5 {[%clk 0:03:00]}  Na6 {[%clk 0:02:56]} 5. e3 {[%clk 0:03:00]}  c6 {[%clk 0:02:56]} 6. Nc3 {[%clk 0:02:59]}  Nc7 {[%clk 0:02:56]} 7. Bd3 {[%clk 0:02:53]}  Bd6 {[%clk 0:02:56]} 8. Qf3 {[%clk 0:02:53]}  b5 {[%clk 0:02:46]} 9. h4 {[%clk 0:02:48]}  a5 {[%clk 0:02:44]} 10. g4 {[%clk 0:02:44]}  b4 {[%clk 0:02:38]} 11. Nce2 {[%clk 0:02:38]}  Ba6 {[%clk 0:02:38]} 12. g5 {[%clk 0:02:34]}  Bxf4 {[%clk 0:02:32]} 13. Qxf4 {[%clk 0:02:18]}  Nh5 {[%clk 0:02:20]} 14. Qe5 {[%clk 0:02:17]}  O-O {[%clk 0:02:11]} 15. Nh3 {[%clk 0:01:43]}  Ne8 {[%clk 0:01:52]} 16. Nhf4 {[%clk 0:01:36]}  Nxf4 {[%clk 0:01:51]} 17. Nxf4 {[%clk 0:01:33]}  Qd6 {[%clk 0:01:49]} 18. Qxd6 {[%clk 0:01:27]}  Nxd6 {[%clk 0:01:50]} 19. Bxa6 {[%clk 0:01:27]}  Rxa6 {[%clk 0:01:50]} 20. Ke2 {[%clk 0:01:17]}  Rc8 {[%clk 0:01:48]} 21. Nd3 {[%clk 0:01:15]}  Ne4 {[%clk 0:01:46]} 22. Rhc1 {[%clk 0:01:09]}  f6 {[%clk 0:01:43]} 23. f3 {[%clk 0:01:04]}  Ng3+ {[%clk 0:01:40]} 24. Kf2 {[%clk 0:01:05]}  Nf5 {[%clk 0:01:40]} 25. gxf6 {[%clk 0:01:03]}  gxf6 {[%clk 0:01:37]} 26. Nc5 {[%clk 0:01:03]}  Ra7 {[%clk 0:01:34]} 27. Nxe6 {[%clk 0:00:40]}  Re8 {[%clk 0:01:34]} 28. e4 {[%clk 0:00:31]}  Nxh4 {[%clk 0:01:26]} 29. exd5 {[%clk 0:00:30]}  cxd5 {[%clk 0:01:25]} 30. Nf4 {[%clk 0:00:25]}  Rd7 {[%clk 0:01:20]} 31. Rg1+ {[%clk 0:00:20]}  Kf7 {[%clk 0:01:20]} 32. Rh1 {[%clk 0:00:18]}  Ng6 {[%clk 0:00:37]} 33. Rxh7+ {[%clk 0:00:18]}  Kg8 {[%clk 0:00:37]} 34. Rxd7 {[%clk 0:00:17]}  Nxf4 {[%clk 0:00:38]} 35. Re1 {[%clk 0:00:13]}  Rc8 {[%clk 0:00:36]} 36. Kg3 {[%clk 0:00:09]}  Nh5+ {[%clk 0:00:35]} 37. Kg4 {[%clk 0:00:09]}  Ng7 {[%clk 0:00:32]} 38. Ree7 {[%clk 0:00:09]}  Ne8 {[%clk 0:00:29]} 39. Kf5 {[%clk 0:00:09]}  Kf8 {[%clk 0:00:26]} 40. Rf7+ {[%clk 0:00:09]}  Kg8 {[%clk 0:00:26]} 41. Kg6 {[%clk 0:00:09]}  Rxc2 {[%clk 0:00:23]} 42. Rfe7 {[%clk 0:00:07]}  Rg2+ {[%clk 0:00:22]} 43. Kf5 {[%clk 0:00:07]}  Kf8 {[%clk 0:00:20]} 44. Rh7 {[%clk 0:00:05]}  Rg5+ {[%clk 0:00:16]} 45. Kf4 {[%clk 0:00:04]}  Kg8 {[%clk 0:00:17]} 46. Rhe7 {[%clk 0:00:04]}  Kf8 {[%clk 0:00:17]} 47. Ra7 {[%clk 0:00:04]}  Ng7 {[%clk 0:00:16]} 48. Rab7 {[%clk 0:00:02]}  Rh5 {[%clk 0:00:10]} 49. Ke3 {[%clk 0:00:01]}  Nf5+ {[%clk 0:00:10]} 50. Kd3 {[%clk 0:00:02]}  Nxe7 {[%clk 0:00:11]} 51. Ra7 {[%clk 0:00:02]}  Rf5 {[%clk 0:00:09]} 52. Ke3 {[%clk 0:00:02]}  Nc6 {[%clk 0:00:09]} 53. Ra6 {[%clk 0:00:02]}  Ne7 {[%clk 0:00:05]} 54. Rxa5 {[%clk 0:00:03]}  Rh5 {[%clk 0:00:05]} 55. Ra8+ {[%clk 0:00:03]}  Kf7 {[%clk 0:00:05]} 56. a3 {[%clk 0:00:04]}  bxa3 {[%clk 0:00:05]} 57. bxa3 {[%clk 0:00:05]}  Rh1 {[%clk 0:00:05]} 58. a4 {[%clk 0:00:05]}  Ra1 {[%clk 0:00:05]} 59. Ra7 {[%clk 0:00:06]}  Ra3+ {[%clk 0:00:05]} 60. Kf4 {[%clk 0:00:06]}  Ke6 {[%clk 0:00:05]} 61. Ra6+ {[%clk 0:00:05]}  Kf7 {[%clk 0:00:05]} 62. Ra7 {[%clk 0:00:05]}  Kf8 {[%clk 0:00:05]} 63. Ra8+ {[%clk 0:00:06]}  Kf7 {[%clk 0:00:05]} 64. Ra7 {[%clk 0:00:07]} 1/2-1/2


[Site "https://www.chess.com"]

[Event "Titled Tuesday Blitz February 22 Late 2022"]
[White "Kosakowski, Jakub"]
[Black "Sviridov, Valery"]
[WhiteFideId "1185080"]
[BlackFideId "4120680"]
[WhiteElo "2476"]
[BlackElo "2454"]
[Result "1-0"]
[Round "08"]
[TimeControl "180+1"]
[Date "2022.02.22"]
[WhiteClock "0:00:26"]
[BlackClock "0:00:15"]

1. d4 {[%clk 0:03:00]}  g6 {[%clk 0:02:58]} 2. e4 {[%clk 0:02:58]}  Bg7 {[%clk 0:02:59]} 3. Nc3 {[%clk 0:02:59]}  d6 {[%clk 0:02:59]} 4. Be3 {[%clk 0:02:59]}  a6 {[%clk 0:03:00]} 5. Qd2 {[%clk 0:02:59]}  b5 {[%clk 0:03:00]} 6. O-O-O {[%clk 0:02:59]}  Bb7 {[%clk 0:03:00]} 7. f3 {[%clk 0:02:59]}  Nd7 {[%clk 0:03:00]} 8. h4 {[%clk 0:03:00]}  Ngf6 {[%clk 0:02:56]} 9. g4 {[%clk 0:02:43]}  h6 {[%clk 0:02:51]} 10. Nh3 {[%clk 0:02:38]}  e6 {[%clk 0:02:49]} 11. g5 {[%clk 0:02:13]}  hxg5 {[%clk 0:02:47]} 12. Nxg5 {[%clk 0:02:12]}  Qe7 {[%clk 0:02:47]} 13. a4 {[%clk 0:01:56]}  b4 {[%clk 0:02:46]} 14. Ne2 {[%clk 0:01:56]}  a5 {[%clk 0:02:46]} 15. Nf4 {[%clk 0:01:56]}  d5 {[%clk 0:01:55]} 16. e5 {[%clk 0:01:46]}  Nh5 {[%clk 0:01:53]} 17. Nxh5 {[%clk 0:01:39]}  Rxh5 {[%clk 0:01:53]} 18. f4 {[%clk 0:01:39]}  O-O-O {[%clk 0:01:41]} 19. Be2 {[%clk 0:01:38]}  Rh6 {[%clk 0:01:40]} 20. Kb1 {[%clk 0:00:56]}  Rdh8 {[%clk 0:01:38]} 21. Bf2 {[%clk 0:00:55]}  Kb8 {[%clk 0:01:36]} 22. c3 {[%clk 0:00:54]}  b3 {[%clk 0:01:21]} 23. Rc1 {[%clk 0:00:50]}  Nb6 {[%clk 0:01:09]} 24. Qd1 {[%clk 0:00:47]}  Bc6 {[%clk 0:01:08]} 25. Qxb3 {[%clk 0:00:44]}  Bxa4 {[%clk 0:01:08]} 26. Qa2 {[%clk 0:00:44]}  Kb7 {[%clk 0:01:07]} 27. c4 {[%clk 0:00:35]}  dxc4 {[%clk 0:01:04]} 28. Bxc4 {[%clk 0:00:36]}  Rd8 {[%clk 0:00:51]} 29. Rh3 {[%clk 0:00:34]}  Rd7 {[%clk 0:00:35]} 30. Ra3 {[%clk 0:00:32]}  Bc6 {[%clk 0:00:20]} 31. Rxa5 {[%clk 0:00:30]}  Bg2 {[%clk 0:00:18]} 32. d5 {[%clk 0:00:26]}  Bxd5 {[%clk 0:00:16]} 33. Bxd5+ {[%clk 0:00:25]}  Rxd5 {[%clk 0:00:15]} 34. Ra7+ {[%clk 0:00:25]}  Kb8 {[%clk 0:00:15]} 35. Bxb6 {[%clk 0:00:26]} 1-0


[Site "https://www.chess.com"]

[Event "Titled Tuesday Blitz February 22 Late 2022"]
[White "Kukhmazov, Arsen"]
[Black "Gomez Ledo, Roberto Carlos"]
[WhiteFideId "24108260"]
[BlackFideId "3507076"]
[WhiteElo "2487"]
[BlackElo "2379"]
[Result "1-0"]
[Round "08"]
[TimeControl "180+1"]
[Date "2022.02.22"]
[WhiteClock "0:00:22"]
[BlackClock "0:00:03"]

1. d4 {[%clk 0:03:00]}  Nf6 {[%clk 0:02:59]} 2. c4 {[%clk 0:03:01]}  e6 {[%clk 0:02:59]} 3. Nf3 {[%clk 0:03:01]}  d5 {[%clk 0:02:58]} 4. e3 {[%clk 0:03:00]}  c5 {[%clk 0:02:44]} 5. cxd5 {[%clk 0:03:00]}  Nxd5 {[%clk 0:02:40]} 6. dxc5 {[%clk 0:02:51]}  Bxc5 {[%clk 0:02:36]} 7. e4 {[%clk 0:02:51]}  Nf6 {[%clk 0:02:19]} 8. Qxd8+ {[%clk 0:02:50]}  Kxd8 {[%clk 0:02:20]} 9. Nc3 {[%clk 0:02:45]}  Ng4 {[%clk 0:02:06]} 10. Bg5+ {[%clk 0:02:45]}  f6 {[%clk 0:02:03]} 11. Bh4 {[%clk 0:02:46]}  Nc6 {[%clk 0:01:59]} 12. h3 {[%clk 0:02:45]}  Nge5 {[%clk 0:01:57]} 13. Nxe5 {[%clk 0:02:43]}  Nxe5 {[%clk 0:01:57]} 14. O-O-O+ {[%clk 0:02:44]}  Ke7 {[%clk 0:01:52]} 15. Be2 {[%clk 0:02:37]}  Bd7 {[%clk 0:01:48]} 16. Bg3 {[%clk 0:02:26]}  a6 {[%clk 0:01:44]} 17. Kb1 {[%clk 0:02:14]}  Bc6 {[%clk 0:01:41]} 18. f4 {[%clk 0:02:05]}  Ng6 {[%clk 0:01:36]} 19. f5 {[%clk 0:02:05]}  Ne5 {[%clk 0:01:31]} 20. Bxe5 {[%clk 0:01:55]}  fxe5 {[%clk 0:01:29]} 21. fxe6 {[%clk 0:01:56]}  Kxe6 {[%clk 0:01:28]} 22. Bg4+ {[%clk 0:01:55]}  Ke7 {[%clk 0:01:27]} 23. Nd5+ {[%clk 0:01:55]}  Kf7 {[%clk 0:01:05]} 24. Rhf1+ {[%clk 0:01:48]}  Kg6 {[%clk 0:01:03]} 25. b4 {[%clk 0:01:32]}  Bd4 {[%clk 0:00:58]} 26. Ne7+ {[%clk 0:01:31]}  Kg5 {[%clk 0:00:53]} 27. Rf5+ {[%clk 0:00:43]}  Kh4 {[%clk 0:00:52]} 28. Rh5+ {[%clk 0:00:41]}  Kg3 {[%clk 0:00:51]} 29. Nf5+ {[%clk 0:00:42]}  Kh2 {[%clk 0:00:48]} 30. Nxd4 {[%clk 0:00:41]}  exd4 {[%clk 0:00:44]} 31. Rxd4 {[%clk 0:00:42]}  Rad8 {[%clk 0:00:30]} 32. Rxd8 {[%clk 0:00:41]}  Rxd8 {[%clk 0:00:31]} 33. Bf3 {[%clk 0:00:34]}  h6 {[%clk 0:00:27]} 34. Kc2 {[%clk 0:00:34]}  Kg3 {[%clk 0:00:22]} 35. Re5 {[%clk 0:00:33]}  Rd7 {[%clk 0:00:20]} 36. Kc3 {[%clk 0:00:32]}  Kf4 {[%clk 0:00:19]} 37. Re6 {[%clk 0:00:29]}  Ke3 {[%clk 0:00:19]} 38. Kc4 {[%clk 0:00:20]}  Bb5+ {[%clk 0:00:14]} 39. Kc5 {[%clk 0:00:20]}  Bc6 {[%clk 0:00:12]} 40. Kb6 {[%clk 0:00:20]}  Rd4 {[%clk 0:00:11]} 41. a3 {[%clk 0:00:20]}  Rd3 {[%clk 0:00:11]} 42. e5 {[%clk 0:00:16]}  Bxf3 {[%clk 0:00:09]} 43. gxf3 {[%clk 0:00:17]}  Rxa3 {[%clk 0:00:09]} 44. Kxb7 {[%clk 0:00:18]}  Rb3 {[%clk 0:00:09]} 45. Rb6 {[%clk 0:00:18]}  Kxf3 {[%clk 0:00:04]} 46. e6 {[%clk 0:00:18]}  Kf4 {[%clk 0:00:03]} 47. Kc7 {[%clk 0:00:18]}  g5 {[%clk 0:00:01]} 48. Kd7 {[%clk 0:00:18]}  Rd3+ {[%clk 0:00:01]} 49. Rd6 {[%clk 0:00:19]}  Re3 {[%clk 0:00:01]} 50. e7 {[%clk 0:00:19]}  h5 {[%clk 0:00:01]} 51. Re6 {[%clk 0:00:20]}  Rd3+ {[%clk 0:00:02]} 52. Kc7 {[%clk 0:00:20]}  Rc3+ {[%clk 0:00:02]} 53. Kb7 {[%clk 0:00:21]}  Rc4 {[%clk 0:00:02]} 54. e8=Q {[%clk 0:00:21]}  Rxb4+ {[%clk 0:00:03]} 55. Ka7 {[%clk 0:00:22]} 1-0


[Site "https://www.chess.com"]

[Event "Titled Tuesday Blitz February 22 Late 2022"]
[White "Loay, Sameer"]
[Black "Papasimakopoulos, Alexandros"]
[WhiteFideId "8104239"]
[BlackFideId "4244125"]
[WhiteElo "2040"]
[BlackElo "2340"]
[Result "1-0"]
[Round "08"]
[TimeControl "180+1"]
[Date "2022.02.22"]
[WhiteClock "0:00:16"]
[BlackClock "0:00:02"]

1. Nf3 {[%clk 0:03:00]}  d5 {[%clk 0:02:45]} 2. g3 {[%clk 0:03:01]}  c6 {[%clk 0:02:45]} 3. Bg2 {[%clk 0:03:01]}  Bf5 {[%clk 0:02:44]} 4. O-O {[%clk 0:03:01]}  e6 {[%clk 0:02:45]} 5. d3 {[%clk 0:03:02]}  Nd7 {[%clk 0:02:45]} 6. Nbd2 {[%clk 0:03:02]}  Ngf6 {[%clk 0:02:44]} 7. b3 {[%clk 0:03:03]}  h6 {[%clk 0:02:44]} 8. Bb2 {[%clk 0:03:03]}  Be7 {[%clk 0:02:44]} 9. e4 {[%clk 0:03:04]}  Bh7 {[%clk 0:02:38]} 10. Qe2 {[%clk 0:03:04]}  O-O {[%clk 0:02:36]} 11. Ne5 {[%clk 0:03:05]}  Nxe5 {[%clk 0:02:36]} 12. Bxe5 {[%clk 0:03:06]}  Nd7 {[%clk 0:02:36]} 13. Bb2 {[%clk 0:03:06]}  a5 {[%clk 0:02:36]} 14. a4 {[%clk 0:03:04]}  Qc7 {[%clk 0:02:25]} 15. f4 {[%clk 0:03:01]}  dxe4 {[%clk 0:02:21]} 16. dxe4 {[%clk 0:02:59]}  Rfd8 {[%clk 0:02:17]} 17. Kh1 {[%clk 0:02:56]}  Bf6 {[%clk 0:02:14]} 18. Bxf6 {[%clk 0:02:35]}  Nxf6 {[%clk 0:02:15]} 19. e5 {[%clk 0:02:35]}  Nd5 {[%clk 0:02:11]} 20. Nc4 {[%clk 0:02:35]}  Nb4 {[%clk 0:02:03]} 21. Be4 {[%clk 0:02:27]}  Bxe4+ {[%clk 0:01:55]} 22. Qxe4 {[%clk 0:02:28]}  Nd5 {[%clk 0:01:50]} 23. Nd6 {[%clk 0:02:23]}  Ne7 {[%clk 0:01:49]} 24. c4 {[%clk 0:02:21]}  b6 {[%clk 0:01:46]} 25. Rad1 {[%clk 0:02:16]}  Rd7 {[%clk 0:01:37]} 26. Rc1 {[%clk 0:01:30]}  Nc8 {[%clk 0:01:30]} 27. Nxc8 {[%clk 0:01:15]}  Rxc8 {[%clk 0:01:29]} 28. c5 {[%clk 0:01:16]}  b5 {[%clk 0:01:22]} 29. axb5 {[%clk 0:01:14]}  cxb5 {[%clk 0:01:23]} 30. c6 {[%clk 0:00:52]}  Rd2 {[%clk 0:01:23]} 31. Rfd1 {[%clk 0:00:51]}  Qd8 {[%clk 0:01:21]} 32. Rxd2 {[%clk 0:00:44]}  Qxd2 {[%clk 0:01:22]} 33. Rc2 {[%clk 0:00:45]}  Qd1+ {[%clk 0:01:12]} 34. Kg2 {[%clk 0:00:45]}  g6 {[%clk 0:01:04]} 35. c7 {[%clk 0:00:25]}  Kg7 {[%clk 0:01:02]} 36. Qc6 {[%clk 0:00:25]}  h5 {[%clk 0:00:51]} 37. Rf2 {[%clk 0:00:23]}  a4 {[%clk 0:00:44]} 38. bxa4 {[%clk 0:00:20]}  bxa4 {[%clk 0:00:43]} 39. Qb7 {[%clk 0:00:17]}  Qd7 {[%clk 0:00:32]} 40. Rc2 {[%clk 0:00:17]}  a3 {[%clk 0:00:31]} 41. Kh3 {[%clk 0:00:15]}  a2 {[%clk 0:00:18]} 42. Rxa2 {[%clk 0:00:16]}  Rxc7 {[%clk 0:00:18]} 43. Qb3 {[%clk 0:00:15]}  Rb7 {[%clk 0:00:15]} 44. Qf3 {[%clk 0:00:15]}  Qb5 {[%clk 0:00:15]} 45. Re2 {[%clk 0:00:15]}  Rd7 {[%clk 0:00:15]} 46. Qe3 {[%clk 0:00:15]}  Rd3 {[%clk 0:00:15]} 47. Qe4 {[%clk 0:00:16]}  Rb3 {[%clk 0:00:14]} 48. Rf2 {[%clk 0:00:16]}  Rb1 {[%clk 0:00:14]} 49. Qa8 {[%clk 0:00:15]}  Rg1 {[%clk 0:00:11]} 50. Qd8 {[%clk 0:00:12]}  Qc4 {[%clk 0:00:08]} 51. Qf6+ {[%clk 0:00:12]}  Kg8 {[%clk 0:00:08]} 52. Qd8+ {[%clk 0:00:10]}  Kh7 {[%clk 0:00:08]} 53. Qf6 {[%clk 0:00:09]}  Qc7 {[%clk 0:00:07]} 54. f5 {[%clk 0:00:07]}  exf5 {[%clk 0:00:04]} 55. e6 {[%clk 0:00:08]}  fxe6 {[%clk 0:00:04]} 56. Qxe6 {[%clk 0:00:08]}  Qb7 {[%clk 0:00:04]} 57. Rd2 {[%clk 0:00:08]}  Kh6 {[%clk 0:00:02]} 58. Qe3+ {[%clk 0:00:09]}  Kg7 {[%clk 0:00:01]} 59. Qxg1 {[%clk 0:00:09]}  Kh6 {[%clk 0:00:01]} 60. Qd4 {[%clk 0:00:10]}  Qc8 {[%clk 0:00:01]} 61. Qh8+ {[%clk 0:00:10]}  Kg5 {[%clk 0:00:02]} 62. Qxc8 {[%clk 0:00:10]}  f4 {[%clk 0:00:02]} 63. Qd8+ {[%clk 0:00:10]}  Kf5 {[%clk 0:00:03]} 64. Rd5+ {[%clk 0:00:09]}  Ke4 {[%clk 0:00:03]} 65. Qd6 {[%clk 0:00:10]}  Kf3 {[%clk 0:00:04]} 66. Qxf4+ {[%clk 0:00:10]}  Ke2 {[%clk 0:00:04]} 67. Re5+ {[%clk 0:00:10]}  Kd1 {[%clk 0:00:04]} 68. Qf6 {[%clk 0:00:11]}  Kc2 {[%clk 0:00:05]} 69. Re7 {[%clk 0:00:11]}  Kb3 {[%clk 0:00:06]} 70. Qf8 {[%clk 0:00:12]}  Ka4 {[%clk 0:00:06]} 71. Qd8 {[%clk 0:00:13]}  Kb3 {[%clk 0:00:07]} 72. Rc7 {[%clk 0:00:14]}  Ka2 {[%clk 0:00:08]} 73. Qb8 {[%clk 0:00:15]}  Ka1 {[%clk 0:00:02]} 74. Ra7# {[%clk 0:00:16]} 1-0


[Site "https://www.chess.com"]

[Event "Titled Tuesday Blitz February 22 Late 2022"]
[White "Martinez Alcantara, Jose Eduardo"]
[Black "Bryakin, Mikhail"]
[WhiteFideId "3805662"]
[BlackFideId "4165314"]
[WhiteElo "2690"]
[BlackElo "2421"]
[Result "1-0"]
[Round "08"]
[TimeControl "180+1"]
[Date "2022.02.22"]
[WhiteClock "0:01:51"]
[BlackClock "0:02:04"]

1. e4 {[%clk 0:03:00]}  c5 {[%clk 0:02:53]} 2. Nf3 {[%clk 0:03:01]}  d6 {[%clk 0:02:53]} 3. c3 {[%clk 0:03:01]}  Nf6 {[%clk 0:02:53]} 4. h3 {[%clk 0:03:02]}  g6 {[%clk 0:02:50]} 5. Bd3 {[%clk 0:03:02]}  Bg7 {[%clk 0:02:51]} 6. Bc2 {[%clk 0:03:03]}  e5 {[%clk 0:02:50]} 7. d4 {[%clk 0:03:02]}  Nc6 {[%clk 0:02:50]} 8. d5 {[%clk 0:03:02]}  Ne7 {[%clk 0:02:50]} 9. O-O {[%clk 0:03:00]}  O-O {[%clk 0:02:50]} 10. a4 {[%clk 0:02:57]}  Nh5 {[%clk 0:02:51]} 11. Na3 {[%clk 0:02:57]}  f5 {[%clk 0:02:49]} 12. Nc4 {[%clk 0:02:57]}  f4 {[%clk 0:02:47]} 13. Ng5 {[%clk 0:02:54]}  Qc7 {[%clk 0:02:39]} 14. a5 {[%clk 0:02:17]}  Bf6 {[%clk 0:02:29]} 15. Ne6 {[%clk 0:02:17]}  Bxe6 {[%clk 0:02:29]} 16. dxe6 {[%clk 0:02:18]}  Ng7 {[%clk 0:02:28]} 17. Qxd6 {[%clk 0:02:14]}  Rac8 {[%clk 0:02:25]} 18. Qxc7 {[%clk 0:02:12]}  Rxc7 {[%clk 0:02:25]} 19. Rd1 {[%clk 0:02:06]}  Rfc8 {[%clk 0:02:20]} 20. Bd2 {[%clk 0:02:02]}  Rc6 {[%clk 0:02:12]} 21. Be1 {[%clk 0:01:57]}  Nxe6 {[%clk 0:02:09]} 22. Ba4 {[%clk 0:01:54]}  Nf8 {[%clk 0:02:04]} 23. Bxc6 {[%clk 0:01:54]}  Rxc6 {[%clk 0:02:04]} 24. Rd6 {[%clk 0:01:53]}  Kf7 {[%clk 0:02:03]} 25. Rxc6 {[%clk 0:01:53]}  Nxc6 {[%clk 0:02:04]} 26. Nd6+ {[%clk 0:01:51]} 1-0


[Site "https://www.chess.com"]

[Event "Titled Tuesday Blitz February 22 Late 2022"]
[White "Moroni, Luca Jr"]
[Black "Kollars, Dmitrij"]
[WhiteFideId "865834"]
[BlackFideId "12909572"]
[WhiteElo "2573"]
[BlackElo "2584"]
[Result "1-0"]
[Round "08"]
[TimeControl "180+1"]
[Date "2022.02.22"]
[WhiteClock "0:00:05"]
[BlackClock "0:00:10"]

1. d4 {[%clk 0:03:00]}  Nf6 {[%clk 0:02:59]} 2. Bf4 {[%clk 0:03:01]}  d5 {[%clk 0:02:59]} 3. e3 {[%clk 0:03:01]}  c5 {[%clk 0:02:59]} 4. dxc5 {[%clk 0:03:02]}  e6 {[%clk 0:02:58]} 5. b4 {[%clk 0:03:01]}  Bd7 {[%clk 0:02:58]} 6. c3 {[%clk 0:02:53]}  a5 {[%clk 0:02:55]} 7. Nd2 {[%clk 0:02:50]}  axb4 {[%clk 0:02:47]} 8. cxb4 {[%clk 0:02:51]}  b6 {[%clk 0:02:47]} 9. cxb6 {[%clk 0:02:51]}  Bxb4 {[%clk 0:02:41]} 10. Bc7 {[%clk 0:02:51]}  Qe7 {[%clk 0:02:39]} 11. Nf3 {[%clk 0:02:51]}  O-O {[%clk 0:02:31]} 12. Bd3 {[%clk 0:02:49]}  Na6 {[%clk 0:02:13]} 13. b7 {[%clk 0:02:47]}  Nc5 {[%clk 0:02:13]} 14. Qb1 {[%clk 0:02:15]}  Nxb7 {[%clk 0:02:01]} 15. O-O {[%clk 0:02:11]}  Na5 {[%clk 0:01:21]} 16. Rc1 {[%clk 0:02:02]}  Nc6 {[%clk 0:01:12]} 17. a4 {[%clk 0:01:48]}  e5 {[%clk 0:01:04]} 18. Bb5 {[%clk 0:01:46]}  Rac8 {[%clk 0:00:39]} 19. Bxc6 {[%clk 0:01:35]}  Rxc7 {[%clk 0:00:39]} 20. Bxd7 {[%clk 0:01:34]}  Rxd7 {[%clk 0:00:39]} 21. Nf1 {[%clk 0:01:24]}  Ra8 {[%clk 0:00:36]} 22. Nxe5 {[%clk 0:01:20]}  Qxe5 {[%clk 0:00:31]} 23. Qxb4 {[%clk 0:01:20]}  Rda7 {[%clk 0:00:32]} 24. Nd2 {[%clk 0:01:08]}  h5 {[%clk 0:00:27]} 25. h3 {[%clk 0:01:08]}  Qe8 {[%clk 0:00:25]} 26. a5 {[%clk 0:01:07]}  Qd8 {[%clk 0:00:25]} 27. Rc5 {[%clk 0:00:55]}  Ra6 {[%clk 0:00:25]} 28. Rb5 {[%clk 0:00:48]}  Qc7 {[%clk 0:00:21]} 29. Qc5 {[%clk 0:00:45]}  Qe5 {[%clk 0:00:20]} 30. Rc1 {[%clk 0:00:33]}  Qf5 {[%clk 0:00:17]} 31. Nf3 {[%clk 0:00:31]}  g6 {[%clk 0:00:14]} 32. Nd4 {[%clk 0:00:24]}  Qd3 {[%clk 0:00:14]} 33. Qc7 {[%clk 0:00:16]}  Ne4 {[%clk 0:00:13]} 34. Rb8+ {[%clk 0:00:16]}  Rxb8 {[%clk 0:00:12]} 35. Qxb8+ {[%clk 0:00:17]}  Kg7 {[%clk 0:00:12]} 36. Qe5+ {[%clk 0:00:14]}  Rf6 {[%clk 0:00:13]} 37. Rf1 {[%clk 0:00:08]}  Nd2 {[%clk 0:00:12]} 38. Ra1 {[%clk 0:00:06]}  Qc3 {[%clk 0:00:10]} 39. Ne6+ {[%clk 0:00:05]} 1-0


[Site "https://www.chess.com"]

[Event "Titled Tuesday Blitz February 22 Late 2022"]
[White "Naroditsky, Daniel"]
[Black "Ponkratov, Pavel"]
[WhiteFideId "2026961"]
[BlackFideId "4157800"]
[WhiteElo "2608"]
[BlackElo "2487"]
[Result "1-0"]
[Round "08"]
[TimeControl "180+1"]
[Date "2022.02.22"]
[WhiteClock "0:00:06"]
[BlackClock "0:00:21"]

1. d4 {[%clk 0:02:57]}  e6 {[%clk 0:03:00]} 2. e4 {[%clk 0:02:55]}  d5 {[%clk 0:03:00]} 3. e5 {[%clk 0:02:56]}  c5 {[%clk 0:03:00]} 4. Nf3 {[%clk 0:02:57]}  Bd7 {[%clk 0:02:59]} 5. Bd3 {[%clk 0:02:51]}  Qb6 {[%clk 0:02:58]} 6. dxc5 {[%clk 0:02:45]}  Bxc5 {[%clk 0:02:58]} 7. O-O {[%clk 0:02:46]}  Bb5 {[%clk 0:02:58]} 8. Nc3 {[%clk 0:02:44]}  Bxd3 {[%clk 0:02:57]} 9. cxd3 {[%clk 0:02:40]}  Qa6 {[%clk 0:02:54]} 10. Be3 {[%clk 0:02:31]}  Nd7 {[%clk 0:02:47]} 11. Qb3 {[%clk 0:02:29]}  Ne7 {[%clk 0:02:31]} 12. Nb5 {[%clk 0:02:17]}  Qb6 {[%clk 0:02:19]} 13. d4 {[%clk 0:02:15]}  a6 {[%clk 0:02:19]} 14. a4 {[%clk 0:01:50]}  Ba3 {[%clk 0:01:50]} 15. Rxa3 {[%clk 0:01:30]}  axb5 {[%clk 0:01:49]} 16. axb5 {[%clk 0:01:31]}  O-O {[%clk 0:01:49]} 17. Rc1 {[%clk 0:01:24]}  Rac8 {[%clk 0:01:48]} 18. Raa1 {[%clk 0:01:22]}  Nf5 {[%clk 0:01:46]} 19. Qb4 {[%clk 0:01:21]}  h6 {[%clk 0:01:41]} 20. h3 {[%clk 0:01:20]}  Rxc1+ {[%clk 0:01:36]} 21. Rxc1 {[%clk 0:01:20]}  Ra8 {[%clk 0:01:36]} 22. Bd2 {[%clk 0:01:17]}  Qd8 {[%clk 0:01:32]} 23. Kh2 {[%clk 0:01:08]}  Nb6 {[%clk 0:01:27]} 24. b3 {[%clk 0:01:05]}  Nd7 {[%clk 0:01:23]} 25. Qc3 {[%clk 0:00:57]}  Qb6 {[%clk 0:01:19]} 26. Qb4 {[%clk 0:00:54]}  Qd8 {[%clk 0:01:18]} 27. Qc3 {[%clk 0:00:55]}  Qb6 {[%clk 0:01:18]} 28. g4 {[%clk 0:00:49]}  Ne7 {[%clk 0:01:16]} 29. Qb4 {[%clk 0:00:49]}  Qd8 {[%clk 0:01:15]} 30. Qd6 {[%clk 0:00:46]}  Rc8 {[%clk 0:00:56]} 31. Ra1 {[%clk 0:00:39]}  Rc2 {[%clk 0:00:51]} 32. Kg3 {[%clk 0:00:36]}  Nc8 {[%clk 0:00:46]} 33. Ra8 {[%clk 0:00:34]}  Qe8 {[%clk 0:00:37]} 34. Qa3 {[%clk 0:00:29]}  Ndb6 {[%clk 0:00:37]} 35. Ra5 {[%clk 0:00:25]}  Qd8 {[%clk 0:00:35]} 36. Be3 {[%clk 0:00:21]}  Qc7 {[%clk 0:00:33]} 37. Qb4 {[%clk 0:00:20]}  Ne7 {[%clk 0:00:29]} 38. Ra1 {[%clk 0:00:15]}  Ng6 {[%clk 0:00:29]} 39. h4 {[%clk 0:00:15]}  Nf8 {[%clk 0:00:28]} 40. h5 {[%clk 0:00:15]}  Nfd7 {[%clk 0:00:26]} 41. g5 {[%clk 0:00:14]}  hxg5 {[%clk 0:00:22]} 42. Nxg5 {[%clk 0:00:15]}  Nc8 {[%clk 0:00:22]} 43. Rh1 {[%clk 0:00:14]}  Ndb6 {[%clk 0:00:21]} 44. h6 {[%clk 0:00:14]}  gxh6 {[%clk 0:00:21]} 45. Rxh6 {[%clk 0:00:15]}  Ne7 {[%clk 0:00:21]} 46. Kg4 {[%clk 0:00:12]}  Ra2 {[%clk 0:00:19]} 47. Qe1 {[%clk 0:00:07]}  Qc2 {[%clk 0:00:18]} 48. Qh1 {[%clk 0:00:05]}  Qf5+ {[%clk 0:00:18]} 49. Kg3 {[%clk 0:00:05]}  Ng6 {[%clk 0:00:18]} 50. Rh7 {[%clk 0:00:04]}  Rxf2 {[%clk 0:00:15]} 51. Rxf7 {[%clk 0:00:03]}  Qxg5+ {[%clk 0:00:13]} 52. Bxg5 {[%clk 0:00:03]}  Rxf7 {[%clk 0:00:14]} 53. Qh6 {[%clk 0:00:03]}  Nf8 {[%clk 0:00:12]} 54. Bf6 {[%clk 0:00:03]}  Rh7 {[%clk 0:00:13]} 55. Qg5+ {[%clk 0:00:03]}  Kf7 {[%clk 0:00:14]} 56. Qf4 {[%clk 0:00:03]}  Nbd7 {[%clk 0:00:15]} 57. Bg5+ {[%clk 0:00:02]}  Ke8 {[%clk 0:00:16]} 58. Qg4 {[%clk 0:00:02]}  Rf7 {[%clk 0:00:16]} 59. Qh5 {[%clk 0:00:02]}  b6 {[%clk 0:00:17]} 60. Bf6 {[%clk 0:00:03]}  Nh7 {[%clk 0:00:17]} 61. Bh4 {[%clk 0:00:03]}  Ndf8 {[%clk 0:00:18]} 62. Qh6 {[%clk 0:00:03]}  Rf5 {[%clk 0:00:17]} 63. Qg7 {[%clk 0:00:03]}  Rf7 {[%clk 0:00:17]} 64. Qg8 {[%clk 0:00:03]}  Rf5 {[%clk 0:00:17]} 65. Kh3 {[%clk 0:00:03]}  Rf7 {[%clk 0:00:18]} 66. Qg1 {[%clk 0:00:03]}  Rf3+ {[%clk 0:00:18]} 67. Kg2 {[%clk 0:00:03]}  Rxb3 {[%clk 0:00:19]} 68. Qc1 {[%clk 0:00:04]}  Kf7 {[%clk 0:00:18]} 69. Qc7+ {[%clk 0:00:04]}  Kg6 {[%clk 0:00:18]} 70. Qxb6 {[%clk 0:00:05]}  Kf5 {[%clk 0:00:18]} 71. Qc6 {[%clk 0:00:04]}  Ng6 {[%clk 0:00:19]} 72. Bg3 {[%clk 0:00:04]}  Ng5 {[%clk 0:00:19]} 73. Qc2+ {[%clk 0:00:04]}  Ne4 {[%clk 0:00:20]} 74. Qxb3 {[%clk 0:00:05]}  Kg4 {[%clk 0:00:20]} 75. Qf3+ {[%clk 0:00:05]}  Kg5 {[%clk 0:00:20]} 76. b6 {[%clk 0:00:06]}  Nd2 {[%clk 0:00:20]} 77. Qe3+ {[%clk 0:00:06]}  Kg4 {[%clk 0:00:21]} 78. Qxd2 {[%clk 0:00:06]} 1-0


[Site "https://www.chess.com"]